bitfinex-derivatives/quotes_SOLF0:USTF0_20250109
["timestamp","ask_amount","ask_price","bid_price","bid_amount"]
[1736424630489,1.5986,191.11,191.06,10.54317859]
[1736424631388,1.5986,191.11,191.08,2.6182]
[1736424631586,1.5986,191.11,191.06,10.54317859]
[1736424631894,1.5986,191.11,191.07,2.6185]
[1736424632090,1.5986,191.11,191.06,10.54317859]
[1736424632493,1.5986,191.11,191.06,13.16167859]
[1736424636995,1.5986,191.11,191.07,2.6185]
[1736424637901,1.5986,191.11,191.06,10.54317859]
[1736424638898,5.7786,191.11,191.06,10.54317859]
[1736424639098,8.3966,191.11,191.06,13.16167859]
[1736424639497,15.9766,191.11,191.06,13.16167859]
[1736424639800,13.3586,191.11,191.06,13.16167859]
[1736424642399,11.76,191.11,191.06,10.54317859]
[1736424642703,11.76,191.11,191.09,10.54317859]
[1736424643204,11.76,191.11,191.09,13.16137859]
[1736424644796,2.617,191.18,191.09,15.08317859]
[1736424645001,3.0678,191.2,191.13,10.54317859]
[1736424645402,3.0678,191.2,191.17,6.7297977]
[1736424645798,3.0678,191.2,191.09,4.54]
[1736424645998,3.0678,191.2,191.19,6.7297977]
[1736424646199,3.0678,191.2,191.19,4.8597977]
[1736424646397,5.6846,191.2,191.19,4.8597977]
[1736424647405,5.6846,191.2,191.17,2.6171]
[1736424647704,3.0678,191.2,191.15,10.51417059]
[1736424647906,3.0678,191.2,191.18,2.617]
[1736424648307,3.0678,191.2,191.15,10.51417059]
[1736424648510,3.0678,191.2,191.19,2.6169]
[1736424648910,3.0678,191.2,191.15,10.51417059]
[1736424649115,3.0678,191.2,191.18,2.6169]
[1736424650405,1.4679,191.26,191.19,2.6169]
[1736424650607,3.1697,191.25,191.19,2.6169]
[1736424651113,3.1697,191.25,191.21,10.51417059]
[1736424652106,2.6157,191.28,191.23,2.6163]
[1736424652314,4.7083,191.32,191.24,10.51417059]
[1736424653010,2.6154,191.3,191.25,2.6159]
[1736424654710,4.7083,191.32,191.25,2.6159]
[1736424654907,2.6155,191.29,191.25,2.6159]
[1736424655106,4.7083,191.32,191.25,2.6159]
[1736424655511,2.6156,191.29,191.25,2.6159]
[1736424655711,4.7083,191.32,191.23,4.58]
[1736424657115,4.7083,191.32,191.24,10.51417059]
[1736424657611,2.6156,191.29,191.25,2.6159]
[1736424660316,4.7083,191.32,191.1,7.24808692]
[1736424660514,4.7083,191.32,191.11,9.7959]
[1736424660714,4.7083,191.32,191.2,10.51417059]
[1736424660916,2.6158,191.27,191.22,2.6163]
[1736424661112,4.18,191.26,191.22,2.6163]
[1736424661518,4.18,191.26,191.23,13.13047059]
[1736424662217,4.18,191.26,191.23,10.51417059]
[1736424666324,6.7959,191.26,191.23,10.51417059]
[1736424666623,4.18,191.26,191.2,15.07417059]
[1736424666820,4.18,191.26,191.23,10.51417059]
[1736424668521,3.0817,191.37,191.23,10.51417059]
[1736424668713,3.0817,191.37,191.28,10.51417059]
[1736424668917,2.6149,191.34,191.28,13.12967059]
[1736424669421,3.0817,191.37,191.28,10.51417059]
[1736424669621,2.6147,191.35,191.29,2.6155]
[1736424669825,3.0817,191.37,191.28,10.51417059]
[1736424670024,2.6148,191.34,191.28,13.12967059]
[1736424670217,3.0817,191.37,191.28,10.51417059]
[1736424670821,2.6147,191.35,191.29,2.6154]
[1736424671020,2.6147,191.35,191.31,10.51417059]
[1736424674725,3.0817,191.37,191.31,10.51417059]
[1736424675028,1.5213,191.43,191.34,10.51417059]
[1736424675233,3.176,191.42,191.34,10.51417059]
[1736424675525,2.6141,191.4,191.34,10.51417059]
[1736424676029,10.51417059,191.52,191.37,10.51417059]
[1736424676323,1.5661,191.47,191.4,10.51417059]
[1736424677431,2.6135,191.44,191.4,10.51417059]
[1736424678129,2.6138,191.41,191.37,10.51417059]
[1736424679330,2.6136,191.43,191.37,10.51417059]
[1736424679532,1.5661,191.47,191.34,4.56]
[1736424679833,2.6134,191.45,191.4,13.12817059]
[1736424680132,1.5661,191.47,191.4,10.51417059]
[1736424680527,1.5661,191.47,191.43,2.6136]
[1736424680832,1.5661,191.47,191.4,10.51417059]
[1736424681037,4.1792,191.47,191.41,2.6137]
[1736424681232,1.5661,191.47,191.41,2.6137]
[1736424682126,2.6132,191.46,191.41,2.6137]
[1736424682530,4.17,191.45,191.41,2.6137]
[1736424683728,4.17,191.45,191.4,10.51417059]
[1736424683931,4.17,191.45,191.4,13.12807059]
[1736424684431,6.7833,191.45,191.4,13.12807059]
[1736424684734,4.17,191.45,191.4,10.51417059]
[1736424684937,4.17,191.45,191.37,10.51417059]
[1736424685331,2.614,191.4,191.37,10.51417059]
[1736424685930,4.17,191.45,191.37,10.51417059]
[1736424686427,2.6142,191.39,191.37,10.51417059]
[1736424686624,1.495,191.44,191.35,4.56]
[1736424686825,10.51417059,191.43,191.27,2.6157]
[1736424687028,2.6149,191.34,191.31,10.51417059]
[1736424687235,10.51417059,191.43,191.31,10.51417059]
[1736424687533,2.6149,191.33,191.31,10.51417059]
[1736424690232,2.6148,191.34,191.31,10.51417059]
[1736424690535,10.51417059,191.43,191.31,10.51417059]
[1736424690931,2.6147,191.35,191.31,10.51417059]
[1736424691335,2.6147,191.35,191.31,13.12937059]
[1736424692835,2.6148,191.34,191.31,10.51417059]
[1736424693037,10.51417059,191.43,191.31,10.51417059]
[1736424693333,2.6149,191.34,191.31,10.51417059]
[1736424693538,10.51417059,191.43,191.31,13.12927059]
[1736424693934,2.6148,191.35,191.31,13.12927059]
[1736424694738,2.6148,191.34,191.31,10.51417059]
[1736424695438,2.6148,191.34,191.31,13.12937059]
[1736424695642,10.51417059,191.43,191.31,10.51417059]
[1736424696537,1.495,191.44,191.34,10.51417059]
[1736424696932,1.495,191.44,191.37,10.51417059]
[1736424697139,1.495,191.44,191.39,2.6141]
[1736424697539,2.6138,191.42,191.37,10.51417059]
[1736424697741,2.6138,191.42,191.38,2.6142]
[1736424698133,2.6139,191.41,191.38,2.6142]
[1736424698338,1.495,191.44,191.35,2.6146]
[1736424698840,1.495,191.44,191.34,4.56]
[1736424699139,10.51417059,191.43,191.34,4.56]
[1736424700138,10.51417059,191.43,191.34,7.1748]
[1736424700640,2.6144,191.37,191.34,7.1748]
[1736424701938,10.51417059,191.43,191.34,4.56]
[1736424702140,2.6143,191.38,191.35,2.6146]
[1736424702743,1.495,191.44,191.34,15.07417059]
[1736424703243,2.6138,191.41,191.34,15.07417059]
[1736424703444,2.6138,191.41,191.37,2.6143]
[1736424703745,1.495,191.44,191.37,2.6143]
[1736424703944,2.6139,191.41,191.37,13.12847059]
[1736424704144,4.17,191.45,191.37,10.51417059]
[1736424704446,4.17,191.45,191.4,10.51417059]
[1736424704649,2.6135,191.44,191.41,2.6138]
[1736424704841,2.6135,191.44,191.4,10.51417059]
[1736424705245,1.5661,191.47,191.42,2.6137]
[1736424705548,1.5661,191.47,191.4,10.51417059]
[1736424705846,4.17,191.46,191.4,10.51417059]
[1736424707240,6.7832,191.46,191.41,2.6138]
[1736424707444,4.17,191.46,191.43,10.51417059]
[1736424708648,4.17,191.46,191.43,13.12757059]
[1736424711251,4.17,191.46,191.44,2.6133]
[1736424711957,4.17,191.46,191.43,10.51417059]
[1736424712254,4.17,191.46,191.45,2.6133]
[1736424714152,1.5602,191.52,191.46,2.613]
[1736424714352,1.4909,191.54,191.48,10.51417059]
[1736424715956,4.103,191.54,191.48,10.51417059]
[1736424716555,2.6121,191.54,191.49,2.6126]
[1736424716759,2.612,191.55,191.48,10.51417059]
[1736424716961,2.612,191.55,191.5,2.6125]
[1736424717262,1.5345,191.57,191.48,15.05417059]
[1736424717950,2.6119,191.56,191.51,2.6125]
[1736424718154,2.6119,191.56,191.51,13.12667059]
[1736424718757,2.6119,191.55,191.51,13.12667059]
[1736424718958,1.5345,191.57,191.51,13.12667059]
[1736424719262,2.6118,191.56,191.51,13.12667059]
[1736424720060,1.5243,191.6,191.48,4.54]
[1736424720262,12.03847059,191.6,191.47,10.51417059]
[1736424721157,12.03847059,191.6,191.51,2.6124]
[1736424721158,2.612,191.55,191.51,2.6124]
[1736424721963,1.5243,191.6,191.5,10.51417059]
[1736424722163,1.5243,191.6,191.53,10.51417059]
[1736424722561,1.5243,191.6,191.55,2.6119]
[1736424722959,1.5243,191.6,191.56,10.51417059]
[1736424723160,2.6115,191.59,191.55,2.6119]
[1736424723561,2.6117,191.58,191.54,13.12617059]
[1736424724463,2.6119,191.56,191.54,10.51417059]
[1736424724660,1.5243,191.6,191.54,10.51417059]
[1736424724861,1.5243,191.6,191.52,4.56]
[1736424725057,2.612,191.55,191.52,4.56]
[1736424727569,1.5243,191.6,191.52,4.56]
[1736424728063,1.5243,191.6,191.54,10.51417059]
[1736424728969,4.1357,191.6,191.56,2.6118]
[1736424729469,2.6111,191.62,191.58,2.6115]
[1736424729765,2.6111,191.62,191.57,10.51417059]
[1736424729766,1.4709,191.63,191.57,10.51417059]
[1736424730064,1.4709,191.63,191.52,4.56]
[1736424730065,3.1142,191.68,191.6,10.51417059]
[1736424730270,1.5257,191.68,191.6,10.51417059]
[1736424731771,2.6108,191.64,191.6,10.51417059]
[1736424732765,1.5257,191.68,191.6,10.51417059]
[1736424732967,2.6108,191.64,191.6,10.51417059]
[1736424733270,1.5257,191.68,191.6,10.51417059]
[1736424733866,1.5343,191.71,191.6,10.51417059]
[1736424734067,1.5343,191.71,191.61,2.6111]
[1736424734263,2.6106,191.66,191.61,2.6111]
[1736424734668,1.6063,191.7,191.61,2.6111]
[1736424735175,1.6063,191.7,191.6,10.51417059]
[1736424735673,2.611,191.63,191.6,10.51417059]
[1736424736475,2.6111,191.62,191.6,10.51417059]
[1736424736676,1.6063,191.7,191.6,10.51417059]
[1736424736867,0.79920284,191.69,191.6,10.51417059]
[1736424737072,2.6112,191.61,191.6,10.51417059]
[1736424737268,14.68417059,191.68,191.57,10.51417059]
[1736424737675,2.6115,191.59,191.57,10.51417059]
[1736424738178,14.68417059,191.68,191.57,10.51417059]
[1736424738484,2.6116,191.58,191.57,10.51417059]
[1736424738778,2.6114,191.6,191.57,10.51417059]
[1736424739275,14.68417059,191.68,191.57,10.51417059]
[1736424741367,14.68417059,191.68,191.57,13.12587059]
[1736424742275,14.68417059,191.68,191.57,10.51417059]
[1736424742679,2.6117,191.58,191.54,10.51417059]
[1736424743074,2.6117,191.58,191.54,13.12617059]
[1736424743977,10.51417059,191.65,191.54,10.51417059]
[1736424744178,2.9703,191.64,191.51,13.12667059]
[1736424744477,2.6124,191.52,191.51,10.51417059]
[1736424745274,2.6126,191.51,191.48,10.51417059]
[1736424745673,2.6126,191.51,191.48,13.12707059]
[1736424746173,2.6126,191.51,191.48,10.51417059]
[1736424748074,2.6124,191.52,191.48,10.51417059]
[1736424748378,1.5573,191.63,191.51,10.51417059]
[1736424748577,1.5573,191.63,191.55,10.51417059]
[1736424748882,2.6118,191.56,191.55,10.51417059]
[1736424759088,2.6122,191.54,191.52,10.51417059]
[1736424762481,12.07147059,191.63,191.49,10.51417059]
[1736424762679,2.6127,191.5,191.49,10.51417059]
[1736424764692,10.51417059,191.6,191.46,10.51417059]
[1736424764989,10.51417059,191.57,191.46,10.51417059]
[1736424765190,3.0949,191.56,191.46,10.51417059]
[1736424765392,4.6579,191.56,191.46,10.51417059]
[1736424766382,2.6128,191.49,191.46,10.51417059]
[1736424766580,4.6579,191.56,191.46,10.51417059]
[1736424767587,2.6129,191.48,191.46,10.51417059]
[1736424768282,2.6128,191.49,191.46,10.51417059]
[1736424770791,2.613,191.48,191.46,10.51417059]
[1736424772898,4.6579,191.56,191.46,10.51417059]
[1736424773098,10.51417059,191.53,191.43,10.51417059]
[1736424773298,6.71173527,191.5,191.43,6.71173527]
[1736424773496,3.0464,191.49,191.43,6.71173527]
[1736424773698,2.6135,191.44,191.43,6.71173527]
[1736424773995,6.71173527,191.47,191.41,6.71173527]
[1736424774195,2.6137,191.42,191.41,6.71173527]
[1736424775086,2.6137,191.42,191.36,3.75481159]
[1736424775087,2.614,191.4,191.39,6.71173527]
[1736424775290,12.07507069,191.48,191.36,14.24658228]
[1736424775699,2.6141,191.4,191.36,14.24658228]
[1736424776393,12.07507069,191.48,191.36,10.49177069]
[1736424777688,2.614,191.41,191.36,13.10627069]
[1736424777897,12.07507069,191.48,191.36,13.10627069]
[1736424778497,2.6141,191.4,191.36,13.10627069]
[1736424778691,2.6141,191.4,191.37,2.6144]
[1736424779402,4.17,191.39,191.37,2.6144]
[1736424779700,4.17,191.39,191.36,10.49177069]
[1736424779902,4.17,191.39,191.37,2.6146]
[1736424780405,4.17,191.39,191.36,10.49177069]
[1736424781902,2.6144,191.38,191.36,10.49177069]
[1736424782202,4.17,191.39,191.36,10.49177069]
[1736424782603,6.7843,191.39,191.36,10.49177069]
[1736424782799,4.17,191.39,191.36,10.49177069]
[1736424788110,4.17,191.39,191.36,13.10637069]
[1736424791606,4.17,191.39,191.36,10.49177069]
[1736424793013,5.2229,191.6,191.38,10.49177069]
[1736424793214,3.0832,191.56,191.49,10.49177069]
[1736424793512,3.0832,191.56,191.38,10.49177069]
[1736424793513,2.6123,191.54,191.52,10.49177069]
[1736424793813,3.0832,191.56,191.52,10.49177069]
[1736424794111,2.612,191.55,191.52,10.49177069]
[1736424795421,5.6951,191.56,191.52,10.49177069]
[1736424797213,5.6951,191.56,191.52,13.10417069]
[1736424799716,3.0832,191.56,191.49,10.49177069]
[1736424800612,2.6121,191.54,191.49,10.49177069]
[1736424800811,3.0832,191.56,191.49,10.49177069]
[1736424801411,2.6121,191.54,191.49,13.10457069]
[1736424801715,3.0832,191.56,191.49,10.49177069]
[1736424801911,5.6952,191.56,191.52,13.10417069]
[1736424805818,2.612,191.55,191.52,10.49177069]
[1736424806918,2.6116,191.58,191.53,2.6122]
[1736424807118,2.6116,191.58,191.55,10.49177069]
[1736424808114,2.6117,191.57,191.55,10.49177069]
[1736424810015,2.6122,191.54,191.52,10.49177069]
[1736424810221,10.49177069,191.61,191.49,10.49177069]
[1736424811824,2.6117,191.58,191.49,13.10457069]
[1736424812025,3.1797,191.57,191.49,13.10457069]
[1736424812225,1.5912,191.56,191.49,13.10457069]
[1736424812421,2.6124,191.53,191.49,13.10457069]
[1736424813427,1.5912,191.56,191.49,10.49177069]
[1736424813627,1.5912,191.56,191.5,2.6127]
[1736424813628,2.6121,191.55,191.5,2.6127]
[1736424813829,6.7821,191.55,191.5,2.6127]
[1736424816027,4.17,191.55,191.5,2.6127]
[1736424816331,2.6122,191.54,191.5,2.6127]
[1736424819236,4.17,191.55,191.49,10.49177069]
[1736424819437,6.7821,191.55,191.52,10.49177069]
[1736424820636,4.17,191.55,191.52,13.10417069]
[1736424821436,6.782,191.55,191.52,10.49177069]
[1736424821940,4.17,191.55,191.52,10.49177069]
[1736424822134,2.6123,191.54,191.52,10.49177069]
[1736424823434,4.17,191.55,191.52,10.49177069]
[1736424823641,4.17,191.55,191.52,13.10417069]
[1736424824639,6.782,191.55,191.52,13.10417069]
[1736424824940,4.17,191.55,191.52,13.10417069]
[1736424825342,4.17,191.55,191.54,6.7030881]
[1736424833948,6.782,191.55,191.54,6.7030881]
[1736424834243,10.8730881,191.55,191.45,7.24808692]
[1736424834449,6.7030881,191.53,191.45,7.24808692]
[1736424834646,1.5575,191.52,191.47,6.7030881]
[1736424834848,6.7030881,191.51,191.45,13.95117502]
[1736424835048,6.7030881,191.49,191.45,7.24808692]
[1736424835249,2.6133,191.46,191.45,2.36738692]
[1736424835451,2.6133,191.46,191.44,21.74426078]
[1736424835452,10.48819799,191.51,191.39,10.48819799]
[1736424835753,2.6137,191.44,191.39,13.10239799]
[1736424836347,1.5575,191.52,191.39,10.48819799]
[1736424836552,2.6133,191.46,191.42,10.48819799]
[1736424837851,2.6128,191.49,191.44,2.6135]
[1736424838154,2.6128,191.49,191.45,10.48819799]
[1736424839354,2.613,191.48,191.45,10.48819799]
[1736424842357,4.17,191.47,191.45,10.48819799]
[1736424843564,4.17,191.47,191.45,13.10149799]
[1736424843864,4.17,191.47,191.45,10.48819799]
[1736424844265,10.48819799,191.6,191.45,15.02819799]
[1736424844559,10.48819799,191.6,191.51,10.48819799]
[1736424844560,3.1721,191.6,191.51,10.48819799]
[1736424844962,2.612,191.56,191.51,10.48819799]
[1736424846061,2.612,191.56,191.51,13.10079799]
[1736424846261,2.6121,191.55,191.51,10.48819799]
[1736424847463,3.1721,191.6,191.51,10.48819799]
[1736424847766,2.6119,191.56,191.51,10.48819799]
[1736424848360,2.6119,191.56,191.52,2.6124]
[1736424849067,2.6119,191.56,191.51,13.10069799]
[1736424850268,4.17,191.55,191.51,13.10069799]
[1736424851664,4.17,191.55,191.51,10.48819799]
[1736424852065,4.17,191.55,191.48,4.54]
[1736424852066,2.6124,191.52,191.48,10.48819799]
[1736424852271,4.17,191.55,191.48,10.48819799]
[1736424852464,4.17,191.55,191.46,4.54]
[1736424852669,2.6128,191.49,191.46,4.54]
[1736424853464,4.17,191.55,191.46,4.54]
[1736424855069,2.6128,191.49,191.46,4.54]
[1736424856672,2.6129,191.48,191.46,4.54]
[1736424856867,1.4833,191.53,191.42,10.48819799]
[1736424857263,1.6,191.52,191.42,10.48819799]
[1736424857465,2.6134,191.45,191.42,10.48819799]
[1736424857876,1.6,191.52,191.42,10.48819799]
[1736424858076,2.613,191.48,191.44,2.6134]
[1736424858376,1.6,191.52,191.42,10.48819799]
[1736424858577,2.6128,191.49,191.45,13.10149799]
[1736424858872,1.6,191.52,191.45,10.48819799]
[1736424859370,2.6129,191.48,191.45,10.48819799]
[1736424860671,2.6127,191.5,191.45,10.48819799]
[1736424860876,4.17,191.55,191.48,10.48819799]
[1736424861177,4.17,191.55,191.51,10.48819799]
[1736424861577,2.6122,191.54,191.51,10.48819799]
[1736424861980,4.17,191.55,191.51,10.48819799]
[1736424862174,2.6122,191.53,191.51,10.48819799]
[1736424862370,4.17,191.55,191.51,10.48819799]
[1736424862976,6.782,191.55,191.51,13.10069799]
[1736424863979,4.17,191.55,191.52,2.6123]
[1736424865080,4.17,191.55,191.51,10.48819799]
[1736424865276,4.17,191.55,191.51,13.10059799]
[1736424865979,2.6121,191.54,191.51,10.48819799]
[1736424866182,4.17,191.55,191.51,10.48819799]
[1736424866575,2.6122,191.53,191.51,10.48819799]
[1736424866781,4.17,191.55,191.51,10.48819799]
[1736424867182,2.6123,191.53,191.51,10.48819799]
[1736424868792,4.17,191.55,191.51,10.48819799]
[1736424868990,2.6121,191.54,191.51,10.48819799]
[1736424869390,6.782,191.55,191.51,13.10069799]
[1736424869591,6.782,191.55,191.51,10.48819799]
[1736424872097,6.782,191.55,191.51,13.10069799]
[1736424874193,4.5856,191.59,191.51,10.48819799]
[1736424874497,2.6122,191.54,191.51,10.48819799]
[1736424879997,2.6117,191.57,191.52,2.6123]
[1736424880302,4.5856,191.59,191.52,2.6123]
[1736424880699,2.6119,191.56,191.52,2.6123]
[1736424881401,2.6119,191.56,191.54,6.70414402]
[1736424882202,4.5856,191.59,191.54,6.70414402]
[1736424882804,2.6117,191.57,191.54,6.70414402]
[1736424885607,4.5856,191.59,191.54,6.70414402]
[1736424885807,11.28974402,191.59,191.52,9.31644402]
[1736424886205,2.6117,191.57,191.52,9.31644402]
[1736424886411,4.5856,191.59,191.54,6.70414402]
[1736424886800,2.6119,191.56,191.54,6.70414402]
[1736424887401,2.6117,191.57,191.54,9.31614402]
[1736424888511,2.6116,191.58,191.56,6.70414402]
[1736424889706,2.6118,191.56,191.55,6.70414402]
[1736424892717,6.7818,191.56,191.55,6.70414402]
[1736424903327,4.17,191.56,191.46,7.2728048]
[1736424903525,6.70414402,191.54,191.47,6.70414402]
[1736424903827,6.70414402,191.52,191.46,7.2728048]
[1736424904422,2.6131,191.47,191.45,6.70414402]
[1736424904725,6.70414402,191.5,191.43,6.70414402]
[1736424904928,6.70414402,191.5,191.4,7.2728048]
[1736424905123,6.70414402,191.48,191.4,7.2728048]
[1736424905319,3.0688,191.47,191.4,13.97694882]
[1736424905524,4.596,191.47,191.4,6.70414402]
[1736424906624,4.596,191.47,191.42,6.70414402]
[1736424907128,4.596,191.47,191.44,6.70414402]
[1736424907129,2.6132,191.46,191.44,6.70414402]
[1736424907323,4.596,191.47,191.44,6.70414402]
[1736424907529,4.596,191.47,191.41,6.70414402]
[1736424908435,2.6133,191.46,191.41,6.70414402]
[1736424908724,6.70414402,191.42,191.32,6.70414402]
[1736424908932,4.56,191.45,191.34,6.70414402]
[1736424909326,6.70414402,191.42,191.36,6.70414402]
[1736424909525,2.614,191.41,191.36,6.70414402]
[1736424909722,6.70414402,191.42,191.36,6.70414402]
[1736424910133,6.70414402,191.4,191.26,6.0807]
[1736424910329,6.70414402,191.4,191.32,6.70414402]
[1736424910526,6.70414402,191.38,191.32,6.70414402]
[1736424910824,4.6091,191.39,191.34,6.70414402]
[1736424911226,4.6091,191.39,191.26,1.5207]
[1736424911427,4.6091,191.39,191.32,6.70414402]
[1736424911924,6.70414402,191.38,191.32,6.70414402]
[1736424912125,6.70414402,191.38,191.3,6.70414402]
[1736424912526,4.18,191.37,191.3,6.70414402]
[1736424912923,2.6152,191.31,191.3,6.70414402]
[1736424913425,2.6149,191.34,191.28,6.70414402]
[1736424913630,4.18,191.37,191.28,6.70414402]
[1736424913825,6.70414402,191.35,191.28,6.70414402]
[1736424914336,6.70414402,191.33,191.26,6.70414402]
[1736424914728,2.6158,191.27,191.26,6.70414402]
[1736424914927,6.70414402,191.31,191.24,6.70414402]
[1736424915127,4.6432,191.3,191.24,6.70414402]
[1736424915335,6.70414402,191.29,191.22,6.70414402]
[1736424916533,2.616,191.26,191.22,6.70414402]
[1736424916836,6.70414402,191.29,191.22,6.70414402]
[1736424917431,4.6432,191.3,191.24,6.70414402]
[1736424917632,4.6432,191.3,191.26,6.70414402]
[1736424917835,2.6158,191.28,191.24,6.70414402]
[1736424918032,4.6432,191.3,191.24,6.70414402]
[1736424920235,4.18,191.37,191.26,6.70414402]
[1736424920432,6.70414402,191.35,191.28,6.70414402]
[1736424922238,2.6157,191.3,191.28,6.70414402]
[1736424922736,6.70414402,191.35,191.28,6.70414402]
[1736424923240,6.70414402,191.33,191.28,6.70414402]
[1736424923440,6.70414402,191.31,191.24,6.70414402]
[1736424923733,6.70414402,191.29,191.13,1.4803]
[1736424923938,6.70414402,191.25,191.18,6.70414402]
[1736424924340,6.70414402,191.23,191.16,6.70414402]
[1736424924638,2.6168,191.21,191.16,6.70414402]
[1736424924940,6.70414402,191.23,191.16,6.70414402]
[1736424925439,2.6173,191.18,191.14,10.51592044]
[1736424926139,2.6169,191.2,191.15,2.6176]
[1736424926730,2.6169,191.2,191.14,10.51592044]
[1736424926941,2.6169,191.2,191.14,13.13362044]
[1736424927249,10.51592044,191.26,191.14,10.51592044]
[1736424928534,2.6171,191.19,191.14,13.13352044]
[1736424931944,10.51592044,191.23,191.11,10.51592044]
[1736424932140,1.5976,191.22,191.11,10.51592044]
[1736424932345,2.6175,191.16,191.11,13.13402044]
[1736424932545,1.5976,191.22,191.08,1.5829]
[1736424932846,2.6176,191.15,191.11,10.51592044]
[1736424933244,1.5976,191.22,191.11,10.51592044]
[1736424933443,2.618,191.12,191.08,12.09882044]
[1736424933638,6.1776,191.22,191.08,12.09882044]
[1736424934046,6.1776,191.22,191.08,14.71722044]
[1736424934448,6.1776,191.22,191.08,12.09882044]
[1736424934846,2.6179,191.13,191.09,2.6184]
[1736424935047,2.6179,191.13,191.08,12.09882044]
[1736424936152,2.6179,191.13,191.09,2.6182]
[1736424937251,2.6178,191.12,191.08,12.09882044]
[1736424937444,2.6178,191.12,191.08,10.51592044]
[1736424937649,6.1776,191.22,191.08,10.51592044]
[1736424937855,6.1776,191.22,191.11,10.51592044]
[1736424938256,1.5976,191.22,191.14,10.51592044]
[1736424938550,10.51592044,191.26,191.14,10.51592044]
[1736424939154,10.51592044,191.26,191.14,13.13342044]
[1736424939849,10.51592044,191.26,191.11,10.51592044]
[1736424940050,10.51592044,191.23,191.11,10.51592044]
[1736424940253,2.6176,191.14,191.11,10.51592044]
[1736424940454,10.51592044,191.23,191.11,10.51592044]
[1736424940856,10.51592044,191.23,191.14,2.6174]
[1736424941056,12.8433,191.27,191.14,2.6174]
[1736424941057,10.51592044,191.26,191.14,2.6174]
[1736424941257,2.6173,191.16,191.11,10.51592044]
[1736424941559,2.6173,191.16,191.13,2.6176]
[1736424941758,10.51592044,191.23,191.11,10.51592044]
[1736424941955,10.51592044,191.23,191.11,13.13372044]
[1736424942359,10.51592044,191.23,191.11,10.51592044]
[1736424942562,2.6173,191.16,191.12,2.6177]
[1736424942958,10.51592044,191.23,191.12,2.6177]
[1736424944062,2.6174,191.15,191.12,2.6177]
[1736424945264,2.6173,191.16,191.13,2.6176]
[1736424946366,10.51592044,191.23,191.11,10.51592044]
[1736424946658,10.51592044,191.26,191.14,10.51592044]
[1736424947062,2.617,191.19,191.15,2.6173]
[1736424947365,10.51592044,191.26,191.14,10.51592044]
[1736424947660,1.5241,191.28,191.2,10.51592044]
[1736424947661,4.18,191.25,191.2,10.51592044]
[1736424948165,4.18,191.25,191.22,2.6163]
[1736424948362,4.18,191.25,191.2,10.51592044]
[1736424949265,4.18,191.25,191.17,10.51592044]
[1736424949865,2.6165,191.22,191.17,13.13292044]
[1736424950261,4.18,191.25,191.17,10.51592044]
[1736424950565,4.18,191.25,191.16,4.6]
[1736424950863,1.5052,191.24,191.14,10.51592044]
[1736424951166,2.6172,191.17,191.14,10.51592044]
[1736424952657,0.174,191.17,191.14,10.51592044]
[1736424952965,4.18,191.25,191.14,10.51592044]
[1736424952966,4.18,191.25,191.16,10.51592044]
[1736424953274,1.929,191.25,191.24,10.51592044]
[1736424953573,1.929,191.25,191.24,15.21592044]
[1736424953872,1.929,191.25,191.24,17.83212044]
[1736424954061,10.51592044,191.39,191.24,15.21592044]
[1736424954258,1.523,191.4,191.28,10.51592044]
[1736424954666,10.51592044,191.39,191.28,10.51592044]
[1736424956070,2.6151,191.33,191.28,10.51592044]
[1736424956868,2.6151,191.33,191.28,13.13152044]
[1736424957869,10.51592044,191.39,191.28,10.51592044]
[1736424958070,1.523,191.4,191.28,10.51592044]
[1736424959164,2.6146,191.36,191.32,2.615]
[1736424959572,1.523,191.4,191.31,10.51592044]
[1736424960272,1.523,191.4,191.31,15.19592044]
[1736424960571,1.523,191.4,191.34,10.51592044]
[1736424960870,5.7066,191.42,191.37,2.6143]
[1736424961072,4.093,191.42,191.37,2.6143]
[1736424961874,2.6139,191.41,191.34,10.51592044]